[Event "*** Titled Tuesday Blitz"]
[Site "Chess.com"]
[Date "2020.03.03"]
[Round "2"]
[White "Megagigahiper3345"]
[Black "Orest_Vovk"]
[Result "0-1"]
[WhiteElo "2096"]
[BlackElo "2535"]
[TimeControl "180+1"]
[EndTime "13:21:32 PST"]
[Termination "Orest_Vovk won by resignation"]

1. d4 {[%clk 0:03:00.9]} 1... f5 {[%clk 0:02:58.2]} 2. c4 {[%clk 0:02:52.7]}
2... Nf6 {[%clk 0:02:56.9]} 3. Nc3 {[%clk 0:02:52]} 3... e6 {[%clk 0:02:56.9]}
4. a3 {[%clk 0:02:52.2]} 4... c6 {[%clk 0:02:57.3]} 5. c5 {[%clk 0:02:43.5]}
5... d5 {[%clk 0:02:56.5]} 6. cxd6 {[%clk 0:02:43.1]} 6... Bxd6 {[%clk
0:02:56.2]} 7. g3 {[%clk 0:02:40.4]} 7... O-O {[%clk 0:02:55.8]} 8. Bg2 {[%clk
0:02:40.7]} 8... e5 {[%clk 0:02:55.7]} 9. dxe5 {[%clk 0:02:37.9]} 9... Bxe5
{[%clk 0:02:55.8]} 10. Qb3+ {[%clk 0:02:38.5]} 10... Kh8 {[%clk 0:02:54.9]} 11.
Nf3 {[%clk 0:02:38.9]} 11... Bc7 {[%clk 0:02:45.4]} 12. O-O {[%clk 0:02:35.4]}
12... Qe7 {[%clk 0:02:43.8]} 13. Bg5 {[%clk 0:02:16.3]} 13... Nbd7 {[%clk
0:02:35.5]} 14. Rad1 {[%clk 0:02:07.7]} 14... Nc5 {[%clk 0:02:34.3]} 15. Qc2
{[%clk 0:02:05.2]} 15... Be6 {[%clk 0:02:25.3]} 16. Nd4 {[%clk 0:02:01.6]} 16...
Qf7 {[%clk 0:02:05.3]} 17. Nxe6 {[%clk 0:01:50]} 17... Qxe6 {[%clk 0:02:01.4]}
18. b4 {[%clk 0:01:47.1]} 18... Nce4 {[%clk 0:01:58.9]} 19. Bxf6 {[%clk
0:01:36.9]} 19... Nxf6 {[%clk 0:01:57.4]} 20. e3 {[%clk 0:01:32]} 20... Rae8
{[%clk 0:01:54.6]} 21. Rd4 {[%clk 0:01:27.6]} 21... Be5 {[%clk 0:01:52.7]} 22.
Rd3 {[%clk 0:01:26.6]} 22... Bxc3 {[%clk 0:01:49.3]} 23. Qxc3 {[%clk 0:01:27.5]}
23... Ne4 {[%clk 0:01:49.3]} 24. Qd4 {[%clk 0:01:25.3]} 24... Nf6 {[%clk
0:01:39.5]} 25. Rfd1 {[%clk 0:01:09]} 25... a6 {[%clk 0:01:35.1]} 26. Qb6 {[%clk
0:00:55.6]} 26... Qe7 {[%clk 0:01:22.6]} 27. Qc5 {[%clk 0:00:51.6]} 27... Qxc5
{[%clk 0:01:18.8]} 28. bxc5 {[%clk 0:00:52.5]} 28... Re5 {[%clk 0:01:16.2]} 29.
Rb3 {[%clk 0:00:45.1]} 29... Re7 {[%clk 0:01:10.3]} 30. Bf3 {[%clk 0:00:41.9]}
30... g6 {[%clk 0:01:08.6]} 31. Rd6 {[%clk 0:00:40.1]} 31... Kg7 {[%clk
0:01:05.6]} 32. a4 {[%clk 0:00:39.1]} 32... Rff7 {[%clk 0:01:01.1]} 33. h4
{[%clk 0:00:38.6]} 33... Ne4 {[%clk 0:01:00.3]} 34. Bxe4 {[%clk 0:00:38.5]}
34... Rxe4 {[%clk 0:01:00.3]} 35. Rd4 {[%clk 0:00:31.3]} 35... Rxd4 {[%clk
0:00:55.2]} 36. exd4 {[%clk 0:00:32.2]} 36... Rd7 {[%clk 0:00:54.3]} 37. Kf1
{[%clk 0:00:32]} 37... Kf6 {[%clk 0:00:47.8]} 38. Ke2 {[%clk 0:00:31.9]} 38...
Rxd4 {[%clk 0:00:44.4]} 39. Rxb7 {[%clk 0:00:31.8]} 39... Rxa4 {[%clk
0:00:34.6]} 40. Rxh7 {[%clk 0:00:32.2]} 40... Ra5 {[%clk 0:00:31.7]} 41. Ra7
{[%clk 0:00:28.4]} 41... Rxc5 {[%clk 0:00:31.4]} 42. Rxa6 {[%clk 0:00:28.5]}
42... Re5+ {[%clk 0:00:32.1]} 43. Kd3 {[%clk 0:00:26.2]} 43... Re6 {[%clk
0:00:33]} 44. Ra5 {[%clk 0:00:25]} 44... Rd6+ {[%clk 0:00:32.2]} 45. Kc3 {[%clk
0:00:24.9]} 45... Re6 {[%clk 0:00:30.4]} 46. Kd3 {[%clk 0:00:23]} 46... Kg7
{[%clk 0:00:29.8]} 47. Rc5 {[%clk 0:00:22.1]} 47... Kh6 {[%clk 0:00:29.7]} 48.
Rc4 {[%clk 0:00:20.3]} 48... Kh5 {[%clk 0:00:29]} 49. Kd2 {[%clk 0:00:19.3]}
49... Kh6 {[%clk 0:00:22.7]} 50. Kd3 {[%clk 0:00:19.5]} 50... Kg7 {[%clk
0:00:22.8]} 51. Rc5 {[%clk 0:00:19.6]} 51... Kf7 {[%clk 0:00:22.8]} 52. Rc1
{[%clk 0:00:19.4]} 52... Ke7 {[%clk 0:00:22.5]} 53. Kd4 {[%clk 0:00:18]} 53...
Kd6 {[%clk 0:00:21.9]} 54. Rc2 {[%clk 0:00:18.2]} 54... Re4+ {[%clk 0:00:21.7]}
55. Kd3 {[%clk 0:00:18.8]} 55... c5 {[%clk 0:00:21.7]} 56. f3 {[%clk 0:00:19.3]}
56... Ra4 {[%clk 0:00:20.9]} 57. Ke3 {[%clk 0:00:19.3]} 57... Kd5 {[%clk
0:00:17.7]} 58. Rg2 {[%clk 0:00:14.2]} 58... Ke5 {[%clk 0:00:15.5]} 59. f4+
{[%clk 0:00:12.4]} 59... Kd5 {[%clk 0:00:14.4]} 60. g4 {[%clk 0:00:13]} 60...
Ra3+ {[%clk 0:00:14.6]} 61. Kf2 {[%clk 0:00:11.2]} 61... Ra2+ {[%clk 0:00:13.5]}
62. Kg3 {[%clk 0:00:11.2]} 62... Rxg2+ {[%clk 0:00:13.3]} 63. Kxg2 {[%clk
0:00:12.1]} 63... fxg4 {[%clk 0:00:12.9]} 64. Kg3 {[%clk 0:00:05.9]} 64... c4
{[%clk 0:00:12.2]} 65. Kf2 {[%clk 0:00:04]} 65... c3 {[%clk 0:00:12]} 66. f5
{[%clk 0:00:03.3]} 66... gxf5 {[%clk 0:00:11.4]} 67. h5 {[%clk 0:00:03.3]} 67...
c2 {[%clk 0:00:09.7]} 68. h6 {[%clk 0:00:04.2]} 68... c1=Q {[%clk 0:00:09.6]}
69. h7 {[%clk 0:00:05.1]} 0-1

[Event "*** Titled Tuesday Blitz"]
[Site "Chess.com"]
[Date "2020.03.03"]
[Round "2"]
[White "Fuerza777"]
[Black "LogoCzar"]
[Result "0-1"]
[WhiteElo "2197"]
[BlackElo "2472"]
[TimeControl "180+1"]
[EndTime "13:21:41 PST"]
[Termination "LogoCzar won by checkmate"]

1. d4 {[%clk 0:03:00.9]} 1... d5 {[%clk 0:02:59.9]} 2. c4 {[%clk 0:03:00.4]}
2... c6 {[%clk 0:03:00.1]} 3. Nf3 {[%clk 0:02:59.8]} 3... Nf6 {[%clk 0:03:00.5]}
4. Qc2 {[%clk 0:03:00]} 4... g6 {[%clk 0:02:59.1]} 5. Bf4 {[%clk 0:02:55.8]}
5... Bg7 {[%clk 0:02:59]} 6. e3 {[%clk 0:02:55.3]} 6... O-O {[%clk 0:02:59.2]}
7. Nc3 {[%clk 0:02:41.9]} 7... c5 {[%clk 0:02:59.1]} 8. dxc5 {[%clk 0:02:41]}
8... Qa5 {[%clk 0:02:55.5]} 9. Rd1 {[%clk 0:02:25.8]} 9... Ne4 {[%clk
0:02:44.6]} 10. cxd5 {[%clk 0:02:09.3]} 10... Nxc3 {[%clk 0:02:33.7]} 11. bxc3
{[%clk 0:02:09.1]} 11... Bxc3+ {[%clk 0:02:33.4]} 12. Nd2 {[%clk 0:02:08.5]}
12... Bf5 {[%clk 0:02:18.9]} 13. Bd3 {[%clk 0:01:50.8]} 13... Bxd3 {[%clk
0:02:13.8]} 14. Qxd3 {[%clk 0:01:50.8]} 14... Nd7 {[%clk 0:02:11.3]} 15. O-O
{[%clk 0:01:39.5]} 15... Nxc5 {[%clk 0:02:11.1]} 16. Qc2 {[%clk 0:01:33.1]}
16... Rac8 {[%clk 0:01:37.4]} 17. Nb3 {[%clk 0:01:33]} 17... Nxb3 {[%clk
0:01:33.9]} 18. Qxb3 {[%clk 0:01:32.9]} 18... b5 {[%clk 0:01:29]} 19. e4 {[%clk
0:01:24.1]} 19... Rc4 {[%clk 0:01:27]} 20. Be3 {[%clk 0:01:00.6]} 20... Rfc8
{[%clk 0:01:09.7]} 21. f3 {[%clk 0:00:55]} 21... Rb4 {[%clk 0:01:08.3]} 22. Qc2
{[%clk 0:00:49.7]} 22... Rb2 {[%clk 0:01:04.8]} 23. Qd3 {[%clk 0:00:39.4]} 23...
Qxa2 {[%clk 0:00:56.1]} 24. Rf2 {[%clk 0:00:39.5]} 24... b4 {[%clk 0:00:38.2]}
25. Rxb2 {[%clk 0:00:34.8]} 25... Qxb2 {[%clk 0:00:36.4]} 26. Bxa7 {[%clk
0:00:27.6]} 26... Be5 {[%clk 0:00:25.3]} 27. g3 {[%clk 0:00:22.8]} 27... Rc2
{[%clk 0:00:21.5]} 28. Qf1 {[%clk 0:00:16.1]} 28... Rxh2 {[%clk 0:00:20.1]} 29.
f4 {[%clk 0:00:16.2]} 29... Bc3 {[%clk 0:00:14]} 30. Bf2 {[%clk 0:00:15.4]}
30... Rh5 {[%clk 0:00:10.7]} 31. e5 {[%clk 0:00:13.1]} 31... Qc2 {[%clk
0:00:10]} 32. d6 {[%clk 0:00:11.6]} 32... exd6 {[%clk 0:00:09.2]} 33. exd6
{[%clk 0:00:11.4]} 33... Qe4 {[%clk 0:00:08.3]} 34. Qg2 {[%clk 0:00:10.3]} 34...
Qe8 {[%clk 0:00:07]} 35. d7 {[%clk 0:00:09.8]} 35... Qd8 {[%clk 0:00:06.1]} 36.
Qc6 {[%clk 0:00:09.6]} 36... Bf6 {[%clk 0:00:05.3]} 37. Qc8 {[%clk 0:00:08.9]}
37... Kg7 {[%clk 0:00:05.2]} 38. Qxd8 {[%clk 0:00:07.1]} 38... Bxd8 {[%clk
0:00:06.1]} 39. Bd4+ {[%clk 0:00:07.3]} 39... f6 {[%clk 0:00:05.9]} 40. Bc5
{[%clk 0:00:07.1]} 40... Kf7 {[%clk 0:00:05.8]} 41. Bxb4 {[%clk 0:00:06.5]}
41... Rb5 {[%clk 0:00:05.8]} 42. Bc3 {[%clk 0:00:05.6]} 42... Rb7 {[%clk
0:00:05.8]} 43. Ba1 {[%clk 0:00:03.1]} 43... Ke6 {[%clk 0:00:05.8]} 44. Kg2
{[%clk 0:00:03.4]} 44... Rxd7 {[%clk 0:00:06]} 45. Rxd7 {[%clk 0:00:03.6]} 45...
Kxd7 {[%clk 0:00:06.9]} 46. g4 {[%clk 0:00:04.2]} 46... Ke6 {[%clk 0:00:07.1]}
47. Kf3 {[%clk 0:00:04.4]} 47... Bc7 {[%clk 0:00:07.2]} 48. Bb2 {[%clk
0:00:04.4]} 48... Bd6 {[%clk 0:00:06.9]} 49. Bc3 {[%clk 0:00:04.5]} 49... f5
{[%clk 0:00:06.6]} 50. gxf5+ {[%clk 0:00:04.2]} 50... Kxf5 {[%clk 0:00:07.5]}
51. Bd2 {[%clk 0:00:03.5]} 51... h5 {[%clk 0:00:07.8]} 52. Be1 {[%clk
0:00:03.8]} 52... Bxf4 {[%clk 0:00:07.6]} 53. Bh4 {[%clk 0:00:03.5]} 53... Be5
{[%clk 0:00:06.8]} 54. Bf2 {[%clk 0:00:03.3]} 54... g5 {[%clk 0:00:06.3]} 55.
Kg2 {[%clk 0:00:03.1]} 55... g4 {[%clk 0:00:06.5]} 56. Be3 {[%clk 0:00:03.2]}
56... Bf4 {[%clk 0:00:06.6]} 57. Bd4 {[%clk 0:00:02.9]} 57... h4 {[%clk
0:00:05.9]} 58. Bf2 {[%clk 0:00:03.4]} 58... h3+ {[%clk 0:00:05.2]} 59. Kh1
{[%clk 0:00:03.8]} 59... Ke4 {[%clk 0:00:04.6]} 60. Bh4 {[%clk 0:00:03.6]} 60...
Kf3 {[%clk 0:00:04.4]} 61. Be1 {[%clk 0:00:03.4]} 61... Bg3 {[%clk 0:00:04.3]}
62. Bd2 {[%clk 0:00:02.9]} 62... Bf2 {[%clk 0:00:04]} 63. Be1 {[%clk 0:00:01.7]}
63... Bxe1 {[%clk 0:00:03.6]} 64. Kh2 {[%clk 0:00:02]} 64... Bf2 {[%clk
0:00:03.5]} 65. Kh1 {[%clk 0:00:02]} 65... Bh4 {[%clk 0:00:03.7]} 66. Kh2 {[%clk
0:00:01.9]} 66... g3+ {[%clk 0:00:03.9]} 67. Kh1 {[%clk 0:00:02.8]} 67... g2+
{[%clk 0:00:04]} 68. Kg1 {[%clk 0:00:03.7]} 68... Bf2+ {[%clk 0:00:04]} 69. Kh2
{[%clk 0:00:04.6]} 69... g1=Q+ {[%clk 0:00:04.5]} 70. Kxh3 {[%clk 0:00:05.5]}
70... Qg3# {[%clk 0:00:05.1]} 0-1

[Event "*** Titled Tuesday Blitz"]
[Site "Chess.com"]
[Date "2020.03.03"]
[Round "2"]
[White "vlad_Sid"]
[Black "Rubinstein_Akiba"]
[Result "1-0"]
[WhiteElo "2703"]
[BlackElo "2349"]
[TimeControl "180+1"]
[EndTime "13:21:54 PST"]
[Termination "vlad_Sid won by checkmate"]

1. c4 {[%clk 0:03:00.9]} 1... Nf6 {[%clk 0:02:59.3]} 2. g3 {[%clk 0:03:01.1]}
2... e5 {[%clk 0:02:58.5]} 3. Bg2 {[%clk 0:03:01.1]} 3... d5 {[%clk 0:02:58.9]}
4. cxd5 {[%clk 0:03:02]} 4... Nxd5 {[%clk 0:02:59.8]} 5. Nc3 {[%clk 0:03:02.3]}
5... Nb6 {[%clk 0:02:59.9]} 6. Nf3 {[%clk 0:03:01.7]} 6... Nc6 {[%clk
0:03:00.1]} 7. O-O {[%clk 0:03:01.2]} 7... Be7 {[%clk 0:03:00.6]} 8. d3 {[%clk
0:03:01.5]} 8... O-O {[%clk 0:03:00.7]} 9. a3 {[%clk 0:03:02]} 9... Be6 {[%clk
0:03:00.8]} 10. Be3 {[%clk 0:03:01.7]} 10... Nd5 {[%clk 0:02:57.4]} 11. Nxd5
{[%clk 0:03:00.3]} 11... Bxd5 {[%clk 0:02:58.3]} 12. Rc1 {[%clk 0:03:00.5]}
12... f6 {[%clk 0:02:54.6]} 13. Qa4 {[%clk 0:02:58.9]} 13... Qd7 {[%clk
0:02:51.4]} 14. Qb5 {[%clk 0:02:54.4]} 14... a6 {[%clk 0:02:28.6]} 15. Nxe5
{[%clk 0:02:49.5]} 15... Bxg2 {[%clk 0:02:10.4]} 16. Nxd7 {[%clk 0:02:45.1]}
16... axb5 {[%clk 0:02:10.4]} 17. Kxg2 {[%clk 0:02:44.6]} 17... Rfd8 {[%clk
0:02:09.7]} 18. Nc5 {[%clk 0:02:42.6]} 18... Na5 {[%clk 0:02:06.5]} 19. Ne4
{[%clk 0:02:34.1]} 19... Rd7 {[%clk 0:02:01.3]} 20. Nd2 {[%clk 0:02:19.6]} 20...
b4 {[%clk 0:01:55.4]} 21. axb4 {[%clk 0:02:05.1]} 21... Bxb4 {[%clk 0:01:56.3]}
22. Ra1 {[%clk 0:01:38.7]} 22... Rdd8 {[%clk 0:01:50.3]} 23. Ra4 {[%clk
0:01:32]} 23... Bxd2 {[%clk 0:01:30.8]} 24. Bxd2 {[%clk 0:01:32.9]} 24... Nb3
{[%clk 0:01:31.3]} 25. Rxa8 {[%clk 0:01:31.2]} 25... Rxa8 {[%clk 0:01:32.2]} 26.
Bc3 {[%clk 0:01:30.9]} 26... c5 {[%clk 0:01:31.1]} 27. Kf3 {[%clk 0:01:25.7]}
27... Kf7 {[%clk 0:01:30.7]} 28. g4 {[%clk 0:01:17.4]} 28... b5 {[%clk
0:01:27.1]} 29. Rb1 {[%clk 0:00:24.6]} 29... b4 {[%clk 0:01:22.5]} 30. Be1
{[%clk 0:00:23.8]} 30... Nd4+ {[%clk 0:01:22.4]} 31. Ke4 {[%clk 0:00:23.2]}
31... Nxe2 {[%clk 0:01:14.6]} 32. Bd2 {[%clk 0:00:23.2]} 32... Rd8 {[%clk
0:01:10.5]} 33. Be3 {[%clk 0:00:19]} 33... Nd4 {[%clk 0:01:09]} 34. Rc1 {[%clk
0:00:14.9]} 34... Re8+ {[%clk 0:00:34.1]} 35. Kd5 {[%clk 0:00:14.8]} 35... Re5+
{[%clk 0:00:34]} 36. Kc4 {[%clk 0:00:12.4]} 36... Ne6 {[%clk 0:00:32.5]} 37. Ra1
{[%clk 0:00:10.7]} 37... h5 {[%clk 0:00:31.5]} 38. Ra7+ {[%clk 0:00:11.2]} 38...
Kg6 {[%clk 0:00:31.5]} 39. h3 {[%clk 0:00:12.1]} 39... hxg4 {[%clk 0:00:31]} 40.
hxg4 {[%clk 0:00:13]} 40... f5 {[%clk 0:00:27.3]} 41. gxf5+ {[%clk 0:00:11.6]}
41... Kxf5 {[%clk 0:00:28.1]} 42. Re7 {[%clk 0:00:08.8]} 42... Kf6 {[%clk
0:00:27.4]} 43. Rd7 {[%clk 0:00:09.1]} 43... g5 {[%clk 0:00:26.6]} 44. Rd5
{[%clk 0:00:09.3]} 44... g4 {[%clk 0:00:15.4]} 45. Bxc5 {[%clk 0:00:08.6]} 45...
Nxc5 {[%clk 0:00:12.9]} 46. Rxe5 {[%clk 0:00:08.3]} 46... Kxe5 {[%clk
0:00:13.8]} 47. Kxc5 {[%clk 0:00:09.2]} 47... Kf4 {[%clk 0:00:14.7]} 48. d4
{[%clk 0:00:07.5]} 48... Kf3 {[%clk 0:00:15.6]} 49. d5 {[%clk 0:00:08.4]} 49...
Kxf2 {[%clk 0:00:16.4]} 50. d6 {[%clk 0:00:09.3]} 50... g3 {[%clk 0:00:17.3]}
51. d7 {[%clk 0:00:10.2]} 51... g2 {[%clk 0:00:18]} 52. d8=Q {[%clk 0:00:11.1]}
52... g1=Q {[%clk 0:00:18.2]} 53. Qd4+ {[%clk 0:00:12]} 53... Kf1 {[%clk
0:00:16.8]} 54. Qxg1+ {[%clk 0:00:12.9]} 54... Kxg1 {[%clk 0:00:17.7]} 55. Kxb4
{[%clk 0:00:13.8]} 55... Kf2 {[%clk 0:00:18.6]} 56. Kc5 {[%clk 0:00:14.7]} 56...
Ke3 {[%clk 0:00:19.5]} 57. b4 {[%clk 0:00:15.6]} 57... Ke4 {[%clk 0:00:20.2]}
58. b5 {[%clk 0:00:16.5]} 58... Ke5 {[%clk 0:00:21.1]} 59. b6 {[%clk 0:00:17.4]}
59... Ke6 {[%clk 0:00:22]} 60. b7 {[%clk 0:00:17]} 60... Kd7 {[%clk 0:00:22.9]}
61. b8=Q {[%clk 0:00:17.3]} 61... Ke7 {[%clk 0:00:22.9]} 62. Qd6+ {[%clk
0:00:16.8]} 62... Kf7 {[%clk 0:00:23.8]} 63. Kd5 {[%clk 0:00:17.1]} 63... Kg7
{[%clk 0:00:24.7]} 64. Qa3 {[%clk 0:00:17.2]} 64... Kh7 {[%clk 0:00:25.6]} 65.
Qa1 {[%clk 0:00:17.7]} 65... Kg8 {[%clk 0:00:24.5]} 66. Qh1 {[%clk 0:00:18.6]}
66... Kf8 {[%clk 0:00:24.7]} 67. Qe4 {[%clk 0:00:18.7]} 67... Kg7 {[%clk
0:00:25.6]} 68. Qe6 {[%clk 0:00:18.3]} 68... Kh7 {[%clk 0:00:25.3]} 69. Qg4
{[%clk 0:00:17.5]} 69... Kh8 {[%clk 0:00:26.2]} 70. Kc6 {[%clk 0:00:17.4]} 70...
Kh7 {[%clk 0:00:27.1]} 71. Kb7 {[%clk 0:00:18.3]} 71... Kh8 {[%clk 0:00:28]} 72.
Ka8 {[%clk 0:00:19.2]} 72... Kh7 {[%clk 0:00:28.9]} 73. Qg5 {[%clk 0:00:19.2]}
73... Kh8 {[%clk 0:00:29.8]} 74. Ka7 {[%clk 0:00:19.4]} 74... Kh7 {[%clk
0:00:30.7]} 75. Ka6 {[%clk 0:00:20.3]} 75... Kh8 {[%clk 0:00:31.6]} 76. Ka5
{[%clk 0:00:21.2]} 76... Kh7 {[%clk 0:00:32.5]} 77. Ka4 {[%clk 0:00:22.1]} 77...
Kh8 {[%clk 0:00:33.2]} 78. Ka3 {[%clk 0:00:23]} 78... Kh7 {[%clk 0:00:34.1]} 79.
Ka2 {[%clk 0:00:23.9]} 79... Kh8 {[%clk 0:00:35]} 80. Ka1 {[%clk 0:00:24.8]}
80... Kh7 {[%clk 0:00:35.9]} 81. Kb1 {[%clk 0:00:25.7]} 81... Kh8 {[%clk
0:00:36.8]} 82. Kc1 {[%clk 0:00:26.6]} 82... Kh7 {[%clk 0:00:37.7]} 83. Kd1
{[%clk 0:00:26.1]} 83... Kh8 {[%clk 0:00:38.6]} 84. Qe7 {[%clk 0:00:25.9]} 84...
Kg8 {[%clk 0:00:37.2]} 85. Ke1 {[%clk 0:00:25.6]} 85... Kh8 {[%clk 0:00:38.1]}
86. Kf1 {[%clk 0:00:26]} 86... Kg8 {[%clk 0:00:39]} 87. Kg1 {[%clk 0:00:26.4]}
87... Kh8 {[%clk 0:00:39.9]} 88. Kh1 {[%clk 0:00:26.9]} 88... Kg8 {[%clk
0:00:40.8]} 89. Kh2 {[%clk 0:00:27.3]} 89... Kh8 {[%clk 0:00:41.7]} 90. Kh3
{[%clk 0:00:27.5]} 90... Kg8 {[%clk 0:00:42.6]} 91. Kh4 {[%clk 0:00:27.9]} 91...
Kh8 {[%clk 0:00:43.5]} 92. Kh5 {[%clk 0:00:28.3]} 92... Kg8 {[%clk 0:00:44.4]}
93. Kh6 {[%clk 0:00:29.2]} 93... Kh8 {[%clk 0:00:45.3]} 94. Qg7# {[%clk
0:00:30.1]} 1-0

[Event "*** Titled Tuesday Blitz"]
[Site "Chess.com"]
[Date "2020.03.03"]
[Round "3"]
[White "cherryandmint"]
[Black "Entilza"]
[Result "1-0"]
[WhiteElo "2861"]
[BlackElo "2490"]
[TimeControl "180+1"]
[EndTime "13:25:36 PST"]
[Termination "cherryandmint won by resignation"]

1. e4 {[%clk 0:02:54.7]} 1... c6 {[%clk 0:02:59.6]} 2. Nc3 {[%clk 0:02:52.3]}
2... d5 {[%clk 0:03:00.5]} 3. Nf3 {[%clk 0:02:53.2]} 3... dxe4 {[%clk 0:03:00]}
4. Nxe4 {[%clk 0:02:53.2]} 4... Nf6 {[%clk 0:03:00.7]} 5. Qe2 {[%clk 0:02:52.6]}
5... Nxe4 {[%clk 0:02:59.1]} 6. Qxe4 {[%clk 0:02:53.5]} 6... Qd5 {[%clk
0:02:59.1]} 7. Qh4 {[%clk 0:02:51.9]} 7... Qe6+ {[%clk 0:02:58.8]} 8. Be2 {[%clk
0:02:47.9]} 8... Qg4 {[%clk 0:02:59.2]} 9. Qg3 {[%clk 0:02:48]} 9... Qxg3 {[%clk
0:02:58.7]} 10. hxg3 {[%clk 0:02:48.9]} 10... f6 {[%clk 0:02:52.1]} 11. d4
{[%clk 0:02:46.6]} 11... Bf5 {[%clk 0:02:48.7]} 12. c3 {[%clk 0:02:40.6]} 12...
Bg4 {[%clk 0:02:39.1]} 13. Bd3 {[%clk 0:02:18.5]} 13... Bxf3 {[%clk 0:02:34]}
14. gxf3 {[%clk 0:02:18.3]} 14... h6 {[%clk 0:02:31.8]} 15. Bg6+ {[%clk
0:02:14.2]} 15... Kd7 {[%clk 0:02:31.6]} 16. Be3 {[%clk 0:02:09.2]} 16... e6
{[%clk 0:02:31.5]} 17. f4 {[%clk 0:02:07.1]} 17... Bd6 {[%clk 0:02:29.9]} 18. f5
{[%clk 0:02:05.5]} 18... exf5 {[%clk 0:02:29.1]} 19. Bxf5+ {[%clk 0:02:05.2]}
19... Kc7 {[%clk 0:02:29.6]} 20. c4 {[%clk 0:02:00.9]} 20... c5 {[%clk
0:02:26.2]} 21. dxc5 {[%clk 0:01:57.5]} 21... Bxc5 {[%clk 0:02:27.1]} 1-0

[Event "*** Titled Tuesday Blitz"]
[Site "Chess.com"]
[Date "2020.03.03"]
[Round "3"]
[White "DenishevM"]
[Black "lelya96"]
[Result "1-0"]
[WhiteElo "2597"]
[BlackElo "2291"]
[TimeControl "180+1"]
[EndTime "13:25:47 PST"]
[Termination "DenishevM won by resignation"]

1. d4 {[%clk 0:03:00.7]} 1... Nf6 {[%clk 0:02:59.7]} 2. c4 {[%clk 0:02:59.5]}
2... e6 {[%clk 0:03:00.1]} 3. Nf3 {[%clk 0:03:00]} 3... Bb4+ {[%clk 0:03:00.3]}
4. Bd2 {[%clk 0:02:59.9]} 4... Qe7 {[%clk 0:03:00.8]} 5. g3 {[%clk 0:03:00.6]}
5... Nc6 {[%clk 0:03:00.3]} 6. Bg2 {[%clk 0:02:59.8]} 6... O-O {[%clk
0:02:58.6]} 7. O-O {[%clk 0:02:59.1]} 7... Bxd2 {[%clk 0:02:58.4]} 8. Qxd2
{[%clk 0:02:57.5]} 8... a5 {[%clk 0:02:58.3]} 9. a3 {[%clk 0:02:55.7]} 9... d5
{[%clk 0:02:56.6]} 10. Qc2 {[%clk 0:02:52.5]} 10... Ne4 {[%clk 0:02:54]} 11. Nc3
{[%clk 0:02:45.9]} 11... Nxc3 {[%clk 0:02:50.5]} 12. Qxc3 {[%clk 0:02:46.8]}
12... Rd8 {[%clk 0:02:50.3]} 13. e3 {[%clk 0:02:44.9]} 13... Bd7 {[%clk
0:02:47.4]} 14. Rac1 {[%clk 0:02:42.3]} 14... Be8 {[%clk 0:02:47.4]} 15. Rfd1
{[%clk 0:02:36.2]} 15... f6 {[%clk 0:02:39.7]} 16. Nd2 {[%clk 0:02:26]} 16...
Bf7 {[%clk 0:02:35.7]} 17. cxd5 {[%clk 0:02:21.6]} 17... exd5 {[%clk 0:02:35.8]}
18. Nb3 {[%clk 0:02:22.2]} 18... a4 {[%clk 0:02:30.5]} 19. Nc5 {[%clk
0:02:20.7]} 19... b6 {[%clk 0:02:29.7]} 20. Nb7 {[%clk 0:02:17]} 20... Bh5
{[%clk 0:02:10]} 21. Nxd8 {[%clk 0:02:13.7]} 21... Nxd8 {[%clk 0:02:09.7]} 22.
Bxd5+ {[%clk 0:02:13.3]} 1-0

[Event "*** Titled Tuesday Blitz"]
[Site "Chess.com"]
[Date "2020.03.03"]
[Round "3"]
[White "VFernandezB"]
[Black "Zq1"]
[Result "0-1"]
[WhiteElo "2280"]
[BlackElo "2574"]
[TimeControl "180+1"]
[EndTime "13:26:07 PST"]
[Termination "Zq1 won by resignation"]

1. d4 {[%clk 0:03:00.9]} 1... d5 {[%clk 0:02:56.4]} 2. c4 {[%clk 0:03:00.3]}
2... e6 {[%clk 0:02:56.3]} 3. Nc3 {[%clk 0:03:00]} 3... Be7 {[%clk 0:02:55.9]}
4. Nf3 {[%clk 0:03:00.2]} 4... Nf6 {[%clk 0:02:55.4]} 5. cxd5 {[%clk 0:03:00.2]}
5... exd5 {[%clk 0:02:54]} 6. Bf4 {[%clk 0:03:00.5]} 6... O-O {[%clk 0:02:51.7]}
7. e3 {[%clk 0:03:00.6]} 7... c6 {[%clk 0:02:45.8]} 8. Bd3 {[%clk 0:02:59.6]}
8... Nbd7 {[%clk 0:02:44.6]} 9. O-O {[%clk 0:02:58.7]} 9... Re8 {[%clk
0:02:44.7]} 10. h3 {[%clk 0:02:55.5]} 10... Nf8 {[%clk 0:02:44.6]} 11. Rb1
{[%clk 0:02:54.4]} 11... Ng6 {[%clk 0:02:44.1]} 12. Bh2 {[%clk 0:02:53.8]} 12...
Bd6 {[%clk 0:02:44.1]} 13. Bxd6 {[%clk 0:02:53]} 13... Qxd6 {[%clk 0:02:43.6]}
14. b4 {[%clk 0:02:53.1]} 14... a6 {[%clk 0:02:34.6]} 15. a4 {[%clk 0:02:52.4]}
15... b5 {[%clk 0:02:27.2]} 16. axb5 {[%clk 0:02:51.8]} 16... axb5 {[%clk
0:02:26.8]} 17. Re1 {[%clk 0:02:48.7]} 17... Ne4 {[%clk 0:02:24.2]} 18. Bxe4
{[%clk 0:02:47.5]} 18... dxe4 {[%clk 0:02:23.6]} 19. Nd2 {[%clk 0:02:48.1]}
19... f5 {[%clk 0:02:18.1]} 20. Nb3 {[%clk 0:02:46.6]} 20... Be6 {[%clk
0:02:13.5]} 21. Nc5 {[%clk 0:02:45.7]} 21... Bc4 {[%clk 0:02:11]} 22. Ra1 {[%clk
0:02:37.4]} 22... Rxa1 {[%clk 0:02:03.2]} 23. Qxa1 {[%clk 0:02:36.8]} 23... Nh4
{[%clk 0:02:03.3]} 24. Qa7 {[%clk 0:02:33.2]} 24... Qg6 {[%clk 0:01:59]} 0-1

[Event "*** Titled Tuesday Blitz"]
[Site "Chess.com"]
[Date "2020.03.03"]
[Round "3"]
[White "Mbneu"]
[Black "Mikhail_Golubev"]
[Result "0-1"]
[WhiteElo "2218"]
[BlackElo "2505"]
[TimeControl "180+1"]
[EndTime "13:26:25 PST"]
[Termination "Mikhail_Golubev won by resignation"]

1. d4 {[%clk 0:03:00.9]} 1... Nf6 {[%clk 0:02:58.1]} 2. c4 {[%clk 0:03:00.3]}
2... g6 {[%clk 0:02:57.5]} 3. Nc3 {[%clk 0:02:59.6]} 3... Bg7 {[%clk 0:02:57.8]}
4. e4 {[%clk 0:02:58.4]} 4... d6 {[%clk 0:02:57.9]} 5. f4 {[%clk 0:02:58.9]}
5... O-O {[%clk 0:02:56]} 6. Nf3 {[%clk 0:02:59.4]} 6... c5 {[%clk 0:02:55.9]}
7. d5 {[%clk 0:03:00]} 7... e6 {[%clk 0:02:56.1]} 8. Be2 {[%clk 0:03:00.4]} 8...
exd5 {[%clk 0:02:55.5]} 9. cxd5 {[%clk 0:03:01.3]} 9... b5 {[%clk 0:02:55.6]}
10. e5 {[%clk 0:02:44.7]} 10... dxe5 {[%clk 0:02:55.5]} 11. fxe5 {[%clk
0:02:44.2]} 11... Ng4 {[%clk 0:02:55.9]} 12. Bf4 {[%clk 0:02:42.9]} 12... Nd7
{[%clk 0:02:34.9]} 13. e6 {[%clk 0:02:30.3]} 13... fxe6 {[%clk 0:02:34.7]} 14.
Bd6 {[%clk 0:02:30.8]} 14... Re8 {[%clk 0:02:13.7]} 15. dxe6 {[%clk 0:01:45.6]}
15... Rxe6 {[%clk 0:02:12]} 16. Qd5 {[%clk 0:01:40.9]} 16... Nb6 {[%clk
0:02:10.6]} 0-1